[Event "*** Monthly 3|2 Blitz Masters"]
[Site "Chess.com"]
[Date "2014.11.25"]
[Round "9"]
[White "MattyDPerrine"]
[Black "Mvpag"]
[Result "0-1"]
[WhiteElo "2026"]
[BlackElo "1907"]
[TimeControl "180+2"]
[EndTime "12:54:01 PST"]
[Termination "Mvpag won by resignation"]

1. d4 {[%clk 0:01:39.9]} 1... d5 {[%clk 0:02:58.1]} 2. c4 {[%clk 0:01:40.8]}
2... e6 {[%clk 0:02:59.6]} 3. cxd5 {[%clk 0:01:42.3]} 3... exd5 {[%clk
0:03:00.1]} 4. Nc3 {[%clk 0:01:44.2]} 4... Nf6 {[%clk 0:03:01.5]} 5. Bg5 {[%clk
0:01:45.5]} 5... Be7 {[%clk 0:03:02.8]} 6. e3 {[%clk 0:01:46.5]} 6... c6 {[%clk
0:03:04]} 7. Qc2 {[%clk 0:01:48.1]} 7... Nbd7 {[%clk 0:03:05.4]} 8. Bd3 {[%clk
0:01:49.7]} 8... Nf8 {[%clk 0:03:06.9]} 9. f3 {[%clk 0:01:50.1]} 9... Ng6 {[%clk
0:03:08.4]} 10. h4 {[%clk 0:01:50.5]} 10... Nh5 {[%clk 0:03:08.5]} 11. Bxe7
{[%clk 0:01:46.8]} 11... Qxe7 {[%clk 0:03:09.3]} 12. Qf2 {[%clk 0:01:46.8]}
12... Ngf4 {[%clk 0:03:07]} 13. Bf1 {[%clk 0:01:48]} 13... O-O {[%clk
0:02:48.2]} 14. O-O-O {[%clk 0:01:49]} 14... Ne6 {[%clk 0:02:46.7]} 15. g4
{[%clk 0:01:50.4]} 15... Nf6 {[%clk 0:02:47.4]} 16. g5 {[%clk 0:01:48.1]} 16...
Nh5 {[%clk 0:02:46.7]} 17. f4 {[%clk 0:01:49.5]} 17... g6 {[%clk 0:02:47.1]} 18.
Be2 {[%clk 0:01:48.6]} 18... Nhg7 {[%clk 0:02:47.7]} 19. h5 {[%clk 0:01:50.2]}
19... Nf5 {[%clk 0:02:48.4]} 20. Nf3 {[%clk 0:01:50.4]} 20... b5 {[%clk
0:02:40.3]} 21. e4 {[%clk 0:01:49.8]} 21... Nd6 {[%clk 0:02:36.9]} 22. exd5
{[%clk 0:01:51.1]} 22... b4 {[%clk 0:02:36.1]} 23. dxe6 {[%clk 0:01:33.4]} 23...
bxc3 {[%clk 0:02:34.7]} 24. bxc3 {[%clk 0:01:34.2]} 24... Ne4 {[%clk 0:02:31.9]}
25. Qe3 {[%clk 0:01:26.4]} 25... Qa3+ {[%clk 0:02:27.8]} 26. Kc2 {[%clk
0:01:28]} 26... Qxa2+ {[%clk 0:02:26.6]} 27. Kc1 {[%clk 0:01:25.4]} 27... Rb8
{[%clk 0:02:10.3]} 0-1

[Event "*** Monthly 3|2 Blitz Masters"]
[Site "Chess.com"]
[Date "2014.11.25"]
[Round "9"]
[White "WanderingPuppet"]
[Black "Hafez_Bakr"]
[Result "0-1"]
[WhiteElo "2006"]
[BlackElo "1814"]
[TimeControl "180+2"]
[EndTime "12:54:33 PST"]
[Termination "Hafez_Bakr won by resignation"]

1. Nc3 {[%clk 0:02:38.3]} 1... c5 {[%clk 0:02:58.9]} 2. e4 {[%clk 0:02:39.1]}
2... d6 {[%clk 0:02:59.8]} 3. Nf3 {[%clk 0:02:40.3]} 3... Nc6 {[%clk 0:03:00.2]}
4. d4 {[%clk 0:02:41.6]} 4... cxd4 {[%clk 0:03:00.6]} 5. Nxd4 {[%clk 0:02:43.5]}
5... Nf6 {[%clk 0:03:01.1]} 6. Bg5 {[%clk 0:02:43.7]} 6... Bd7 {[%clk
0:03:01.3]} 7. Qd2 {[%clk 0:02:44.2]} 7... e6 {[%clk 0:03:01.7]} 8. O-O-O {[%clk
0:02:45.4]} 8... a6 {[%clk 0:03:02.1]} 9. f3 {[%clk 0:02:46.9]} 9... h6 {[%clk
0:02:58.5]} 10. Be3 {[%clk 0:02:47.3]} 10... Be7 {[%clk 0:02:57.9]} 11. g4
{[%clk 0:02:48.3]} 11... Nxd4 {[%clk 0:02:45.5]} 12. Qxd4 {[%clk 0:02:48.5]}
12... e5 {[%clk 0:02:39.6]} 13. Qb6 {[%clk 0:02:49.4]} 13... Qxb6 {[%clk
0:02:38]} 14. Bxb6 {[%clk 0:02:50.1]} 14... Bc6 {[%clk 0:02:38.6]} 15. h4 {[%clk
0:02:50.7]} 15... Nd7 {[%clk 0:02:38.2]} 16. Be3 {[%clk 0:02:50.7]} 16... b5
{[%clk 0:02:37.8]} 17. Be2 {[%clk 0:02:51.6]} 17... b4 {[%clk 0:02:38.7]} 18.
Nd5 {[%clk 0:02:52.7]} 18... Bxd5 {[%clk 0:02:39]} 19. Rxd5 {[%clk 0:02:53.7]}
19... O-O {[%clk 0:02:34.8]} 20. g5 {[%clk 0:02:52.7]} 20... h5 {[%clk
0:02:31.7]} 21. g6 {[%clk 0:02:48.6]} 21... fxg6 {[%clk 0:02:28.4]} 22. Rg1
{[%clk 0:02:45.7]} 22... Kh7 {[%clk 0:02:28.2]} 23. Bg5 {[%clk 0:02:42.5]} 23...
Nf6 {[%clk 0:02:26.9]} 24. Ra5 {[%clk 0:02:43]} 24... Rfb8 {[%clk 0:02:21.8]}
25. Rxa6 {[%clk 0:02:42.1]} 25... Rxa6 {[%clk 0:02:21.4]} 26. Bxa6 {[%clk
0:02:44]} 26... Ra8 {[%clk 0:02:22.2]} 27. Bc4 {[%clk 0:02:45]} 27... Rc8 {[%clk
0:02:21.5]} 28. Be6 {[%clk 0:02:41.8]} 28... Rc5 {[%clk 0:02:15.7]} 29. Be3
{[%clk 0:02:36.6]} 29... Ra5 {[%clk 0:02:15.8]} 30. Bf7 {[%clk 0:02:37.3]} 30...
Nd7 {[%clk 0:02:07.7]} 31. Bxg6+ {[%clk 0:02:33.9]} 31... Kh8 {[%clk 0:02:08.1]}
32. Kb1 {[%clk 0:02:30.5]} 32... Bxh4 {[%clk 0:02:07.8]} 33. Rh1 {[%clk
0:02:25.4]} 33... Bf6 {[%clk 0:02:07.7]} 34. Bf7 {[%clk 0:02:11.6]} 34... h4
{[%clk 0:01:57.9]} 35. Bf2 {[%clk 0:02:09.9]} 35... g5 {[%clk 0:01:57.4]} 36.
Be3 {[%clk 0:02:05.6]} 36... Kg7 {[%clk 0:01:57.5]} 37. Be6 {[%clk 0:02:06.7]}
37... Nc5 {[%clk 0:01:58.1]} 38. Rg1 {[%clk 0:02:02.5]} 38... Nxe6 {[%clk
0:01:57.9]} 0-1

[Event "*** Monthly 3|2 Blitz Masters"]
[Site "Chess.com"]
[Date "2014.11.25"]
[Round "9"]
[White "Argente"]
[Black "ameet100"]
[Result "0-1"]
[WhiteElo "2177"]
[BlackElo "2417"]
[TimeControl "180+2"]
[EndTime "12:57:19 PST"]
[Termination "ameet100 won by resignation"]

1. d4 {[%clk 0:02:50.6]} 1... g6 {[%clk 0:02:58.2]} 2. e4 {[%clk 0:02:50.8]}
2... Bg7 {[%clk 0:02:59.7]} 3. c3 {[%clk 0:02:52]} 3... d6 {[%clk 0:03:01.4]} 4.
Bg5 {[%clk 0:02:51.8]} 4... Nd7 {[%clk 0:03:02.8]} 5. Nd2 {[%clk 0:02:52.1]}
5... c6 {[%clk 0:03:04]} 6. f4 {[%clk 0:02:51.3]} 6... Ngf6 {[%clk 0:03:01]} 7.
e5 {[%clk 0:02:51]} 7... Nd5 {[%clk 0:03:02.2]} 8. c4 {[%clk 0:02:44.8]} 8...
Ne3 {[%clk 0:03:01.1]} 9. Qb3 {[%clk 0:02:40.2]} 9... Nxf1 {[%clk 0:02:59.4]}
10. Nxf1 {[%clk 0:02:33.1]} 10... f6 {[%clk 0:03:00.7]} 11. Bh4 {[%clk
0:02:29.6]} 11... O-O {[%clk 0:03:01]} 12. Nf3 {[%clk 0:02:29.3]} 12... Nb6
{[%clk 0:03:00.7]} 13. Ne3 {[%clk 0:02:25.7]} 13... Be6 {[%clk 0:03:00.6]} 14.
d5 {[%clk 0:02:19.6]} 14... cxd5 {[%clk 0:02:59]} 15. cxd5 {[%clk 0:02:20.1]}
15... Nxd5 {[%clk 0:02:57.8]} 16. Nxd5 {[%clk 0:02:17.6]} 16... Qa5+ {[%clk
0:02:58.6]} 17. Qb4 {[%clk 0:01:44.8]} 17... Qxd5 {[%clk 0:02:58.8]} 18. exf6
{[%clk 0:01:40.3]} 18... Bxf6 {[%clk 0:02:54.8]} 19. O-O {[%clk 0:01:34.7]}
19... a5 {[%clk 0:02:52.6]} 20. Qb6 {[%clk 0:01:17.7]} 20... Ra6 {[%clk
0:02:50]} 21. Qf2 {[%clk 0:01:18.5]} 21... Bxh4 {[%clk 0:02:39.9]} 22. Qxh4
{[%clk 0:01:13.2]} 22... Rf7 {[%clk 0:02:29.4]} 23. Ng5 {[%clk 0:01:11.3]} 23...
Rg7 {[%clk 0:02:30.4]} 24. Rae1 {[%clk 0:01:09.4]} 24... Bf5 {[%clk 0:02:29.6]}
25. b3 {[%clk 0:00:59.4]} 25... Rc6 {[%clk 0:02:28.8]} 26. Rf2 {[%clk
0:00:57.4]} 26... Qd4 {[%clk 0:02:20.8]} 27. Kh1 {[%clk 0:00:49.4]} 27... Qf6
{[%clk 0:02:18.2]} 28. Rfe2 {[%clk 0:00:48]} 28... Rc7 {[%clk 0:02:05.3]} 29. h3
{[%clk 0:00:47.4]} 29... b5 {[%clk 0:01:48.5]} 30. Kh2 {[%clk 0:00:46.4]} 30...
a4 {[%clk 0:01:45.9]} 31. bxa4 {[%clk 0:00:43.8]} 31... bxa4 {[%clk 0:01:47.3]}
32. Qh6 {[%clk 0:00:29.9]} 32... Bd3 {[%clk 0:01:42.3]} 33. Rf2 {[%clk
0:00:23.7]} 33... Bc4 {[%clk 0:01:41.9]} 34. Qh4 {[%clk 0:00:19.9]} 34... Qf5
{[%clk 0:01:38.6]} 35. Qg3 {[%clk 0:00:14.6]} 35... h6 {[%clk 0:01:37.9]} 36.
Nf3 {[%clk 0:00:14.6]} 36... Bd5 {[%clk 0:01:38.3]} 37. Nh4 {[%clk 0:00:15.1]}
37... Qf6 {[%clk 0:01:39.1]} 38. Rfe2 {[%clk 0:00:15.9]} 38... Kh7 {[%clk
0:01:39.1]} 39. Nf3 {[%clk 0:00:16.4]} 39... e6 {[%clk 0:01:37.7]} 40. Nh4
{[%clk 0:00:12.9]} 40... Rc4 {[%clk 0:01:35.5]} 41. Rf2 {[%clk 0:00:12.3]} 41...
Rd4 {[%clk 0:01:34.4]} 42. Qg4 {[%clk 0:00:09]} 42... g5 {[%clk 0:01:34.1]} 43.
fxg5 {[%clk 0:00:03.3]} 43... Qxf2 {[%clk 0:01:33.3]} 44. g6+ {[%clk 0:00:03.7]}
44... Kg8 {[%clk 0:01:34.4]} 0-1

[Event "*** Monthly 3|2 Blitz Masters"]
[Site "Chess.com"]
[Date "2014.11.25"]
[Round "9"]
[White "MoreChessJulia"]
[Black "RitvarsReimanis"]
[Result "0-1"]
[WhiteElo "1882"]
[BlackElo "2241"]
[TimeControl "180+2"]
[EndTime "12:59:14 PST"]
[Termination "RitvarsReimanis won by resignation"]

1. d4 {[%clk 0:03:00]} 1... Nf6 {[%clk 0:02:44.9]} 2. c4 {[%clk 0:02:59.5]} 2...
e6 {[%clk 0:02:45.8]} 3. Nc3 {[%clk 0:02:59]} 3... Bb4 {[%clk 0:02:46.6]} 4. e3
{[%clk 0:02:58.9]} 4... O-O {[%clk 0:02:46.8]} 5. Ne2 {[%clk 0:02:56.1]} 5...
Re8 {[%clk 0:02:46.7]} 6. g3 {[%clk 0:02:52.5]} 6... e5 {[%clk 0:02:44.7]} 7. d5
{[%clk 0:02:43.4]} 7... c6 {[%clk 0:02:31.6]} 8. Bg2 {[%clk 0:02:38.6]} 8...
cxd5 {[%clk 0:02:32.3]} 9. cxd5 {[%clk 0:02:38.3]} 9... d6 {[%clk 0:02:32.3]}
10. a3 {[%clk 0:02:37.9]} 10... Bxc3+ {[%clk 0:02:30.9]} 11. Nxc3 {[%clk
0:02:37.3]} 11... Bg4 {[%clk 0:02:31.4]} 12. f3 {[%clk 0:02:26.6]} 12... Bd7
{[%clk 0:02:28.5]} 13. e4 {[%clk 0:02:26.4]} 13... a5 {[%clk 0:02:27.4]} 14. Qe2
{[%clk 0:02:26]} 14... Na6 {[%clk 0:02:27.5]} 15. Be3 {[%clk 0:02:25]} 15... Rc8
{[%clk 0:02:28.1]} 16. O-O {[%clk 0:02:24.1]} 16... Nc5 {[%clk 0:02:14.9]} 17.
h4 {[%clk 0:02:14.7]} 17... Nb3 {[%clk 0:02:13.6]} 18. Rad1 {[%clk 0:02:13.7]}
18... a4 {[%clk 0:02:14.6]} 19. Kh2 {[%clk 0:02:11.3]} 19... Qa5 {[%clk
0:02:14.5]} 20. Qf2 {[%clk 0:01:50.9]} 20... Bb5 {[%clk 0:02:01.3]} 21. Rfe1
{[%clk 0:01:48.3]} 21... Qa6 {[%clk 0:01:51.5]} 22. Bh3 {[%clk 0:01:47.9]} 22...
Rc4 {[%clk 0:01:47.9]} 23. Nxb5 {[%clk 0:01:26.8]} 23... Qxb5 {[%clk 0:01:47.8]}
24. Rd3 {[%clk 0:01:26.5]} 24... Rc7 {[%clk 0:01:30.2]} 25. Red1 {[%clk
0:01:25.7]} 25... h6 {[%clk 0:01:22.4]} 26. Bb6 {[%clk 0:01:24.9]} 26... Rc1
{[%clk 0:01:09.4]} 27. Rxc1 {[%clk 0:01:19]} 27... Nxc1 {[%clk 0:00:54.4]} 28.
Rc3 {[%clk 0:01:12.6]} 28... Nd3 {[%clk 0:00:48.8]} 29. Bf1 {[%clk 0:01:10]}
29... Nxf2 {[%clk 0:00:32.9]} 30. Bxb5 {[%clk 0:01:09.1]} 30... Ra8 {[%clk
0:00:32.8]} 31. Be2 {[%clk 0:00:52.3]} 31... N2xe4 {[%clk 0:00:28]} 32. fxe4
{[%clk 0:00:52]} 32... Nxe4 {[%clk 0:00:29.9]} 33. Rc7 {[%clk 0:00:50.2]} 33...
g6 {[%clk 0:00:21]} 34. h5 {[%clk 0:00:37.3]} 34... Kg7 {[%clk 0:00:07]} 35.
hxg6 {[%clk 0:00:36]} 35... Kxg6 {[%clk 0:00:06.2]} 36. Rxb7 {[%clk 0:00:27.8]}
36... f5 {[%clk 0:00:07.7]} 37. Rd7 {[%clk 0:00:27]} 37... Rb8 {[%clk
0:00:06.7]} 38. Bf3 {[%clk 0:00:13.4]} 38... Rxb6 {[%clk 0:00:06.2]} 39. Bxe4
{[%clk 0:00:14.4]} 39... fxe4 {[%clk 0:00:08.1]} 40. Kg1 {[%clk 0:00:14.8]}
40... Kg5 {[%clk 0:00:08.6]} 41. Rg7+ {[%clk 0:00:15]} 41... Kf5 {[%clk
0:00:09.6]} 42. Kf1 {[%clk 0:00:16]} 42... e3 {[%clk 0:00:10.1]} 43. Ke2 {[%clk
0:00:15.1]} 43... Rxb2+ {[%clk 0:00:11.2]} 44. Kxe3 {[%clk 0:00:15.6]} 44...
Rb3+ {[%clk 0:00:13.1]} 45. Kf2 {[%clk 0:00:16]} 45... Rxa3 {[%clk 0:00:14.4]}
46. Rd7 {[%clk 0:00:14.7]} 46... Ke4 {[%clk 0:00:13.6]} 47. Rxd6 {[%clk
0:00:15.2]} 47... Ra2+ {[%clk 0:00:15.5]} 48. Kf1 {[%clk 0:00:11.8]} 48... a3
{[%clk 0:00:13.8]} 49. Rxh6 {[%clk 0:00:11.7]} 49... Kxd5 {[%clk 0:00:13.9]} 50.
Ra6 {[%clk 0:00:11.4]} 50... Ke4 {[%clk 0:00:14.9]} 51. Kg1 {[%clk 0:00:11]}
51... Kf3 {[%clk 0:00:15.9]} 52. Rf6+ {[%clk 0:00:09.4]} 52... Kxg3 {[%clk
0:00:16.8]} 53. Rg6+ {[%clk 0:00:09.7]} 53... Kf3 {[%clk 0:00:17.6]} 54. Rf6+
{[%clk 0:00:09.8]} 54... Ke3 {[%clk 0:00:19]} 0-1

[Event "*** Monthly 3|2 Blitz Masters"]
[Site "Chess.com"]
[Date "2014.11.25"]
[Round "9"]
[White "Zhani-Z"]
[Black "rhungaski"]
[Result "1-0"]
[WhiteElo "2041"]
[BlackElo "2406"]
[TimeControl "180+2"]
[EndTime "12:59:20 PST"]
[Termination "Zhani-Z won by resignation"]

1. e4 {[%clk 0:03:00]} 1... d6 {[%clk 0:02:59.1]} 2. d4 {[%clk 0:03:00.3]} 2...
Nf6 {[%clk 0:02:59.8]} 3. Nc3 {[%clk 0:03:01.8]} 3... e5 {[%clk 0:03:01]} 4. Nf3
{[%clk 0:03:01.8]} 4... Nbd7 {[%clk 0:03:01.8]} 5. Bc4 {[%clk 0:03:02.8]} 5...
Be7 {[%clk 0:03:03]} 6. O-O {[%clk 0:03:03.4]} 6... O-O {[%clk 0:03:04]} 7. Re1
{[%clk 0:03:03.8]} 7... c6 {[%clk 0:03:05.1]} 8. a4 {[%clk 0:03:04.4]} 8... a5
{[%clk 0:03:06.7]} 9. h3 {[%clk 0:02:55.6]} 9... exd4 {[%clk 0:03:07.5]} 10.
Nxd4 {[%clk 0:02:55.7]} 10... Nc5 {[%clk 0:03:08.7]} 11. Bf1 {[%clk 0:02:43]}
11... Be6 {[%clk 0:03:07.1]} 12. b3 {[%clk 0:02:42]} 12... Qb6 {[%clk
0:03:04.4]} 13. Bb2 {[%clk 0:02:42.1]} 13... Rad8 {[%clk 0:03:04.5]} 14. Qf3
{[%clk 0:02:34.2]} 14... Nfd7 {[%clk 0:02:46.4]} 15. Rad1 {[%clk 0:01:56.4]}
15... Ne5 {[%clk 0:02:35.8]} 16. Qg3 {[%clk 0:01:56.4]} 16... Bc8 {[%clk
0:02:33.1]} 17. f4 {[%clk 0:01:55.1]} 17... Ng6 {[%clk 0:02:33]} 18. Qf2 {[%clk
0:01:38.8]} 18... Bf6 {[%clk 0:02:02.1]} 19. g3 {[%clk 0:01:39]} 19... Rfe8
{[%clk 0:01:59.4]} 20. Bg2 {[%clk 0:01:36.5]} 20... Na6 {[%clk 0:01:17.1]} 21.
Rd2 {[%clk 0:01:09.3]} 21... Nb4 {[%clk 0:01:16.8]} 22. Red1 {[%clk 0:01:10.1]}
22... Qc5 {[%clk 0:00:56.7]} 23. Nb1 {[%clk 0:01:08.1]} 23... Qh5 {[%clk
0:00:53.1]} 24. Kh2 {[%clk 0:01:01.5]} 24... Bg4 {[%clk 0:00:49.2]} 25. Rf1
{[%clk 0:00:58.8]} 25... Bc8 {[%clk 0:00:46.4]} 26. Na3 {[%clk 0:00:54.7]} 26...
d5 {[%clk 0:00:31.2]} 27. e5 {[%clk 0:00:54.5]} 27... Be7 {[%clk 0:00:32.2]} 28.
Re1 {[%clk 0:00:34.9]} 28... Bc5 {[%clk 0:00:31.6]} 29. c3 {[%clk 0:00:27.6]}
29... Na6 {[%clk 0:00:27.6]} 30. Nac2 {[%clk 0:00:28.5]} 30... Ne7 {[%clk
0:00:17.3]} 31. Ne3 {[%clk 0:00:24.7]} 31... f6 {[%clk 0:00:08.5]} 32. exf6
{[%clk 0:00:24.8]} 32... gxf6 {[%clk 0:00:10.4]} 33. Rde2 {[%clk 0:00:20.6]}
33... Ng6 {[%clk 0:00:09.2]} 34. Nxd5 {[%clk 0:00:16.2]} 34... cxd5 {[%clk
0:00:07.2]} 35. Rxe8+ {[%clk 0:00:16.3]} 35... Rxe8 {[%clk 0:00:08.4]} 36. Rxe8+
{[%clk 0:00:17]} 36... Kf7 {[%clk 0:00:09.9]} 37. Rxc8 {[%clk 0:00:17.9]} 37...
Qd1 {[%clk 0:00:11.6]} 38. Bxd5+ {[%clk 0:00:17.4]} 38... Ke7 {[%clk 0:00:11.5]}
39. Qe2+ {[%clk 0:00:18.4]} 39... Qxe2+ {[%clk 0:00:11.3]} 40. Nxe2 {[%clk
0:00:19.9]} 40... Kd7 {[%clk 0:00:11.7]} 41. Bxb7 {[%clk 0:00:20.6]} 41... Nc7
{[%clk 0:00:12]} 42. Rxc7+ {[%clk 0:00:21.9]} 42... Kxc7 {[%clk 0:00:13.1]} 43.
Be4 {[%clk 0:00:23.6]} 43... Nf8 {[%clk 0:00:13.8]} 44. Kg2 {[%clk 0:00:24.7]}
44... h6 {[%clk 0:00:13.8]} 45. Kf3 {[%clk 0:00:26]} 45... Nd7 {[%clk
0:00:14.7]} 46. c4 {[%clk 0:00:26.8]} 46... Be7 {[%clk 0:00:15.1]} 47. Bf5
{[%clk 0:00:27.8]} 47... Nc5 {[%clk 0:00:16.3]} 48. Bc2 {[%clk 0:00:28.5]} 48...
Ne6 {[%clk 0:00:16.1]} 49. Nd4 {[%clk 0:00:28.8]} 49... Nc5 {[%clk 0:00:17.5]}
50. Nf5 {[%clk 0:00:29.6]} 50... Bf8 {[%clk 0:00:18.9]} 51. Bxf6 {[%clk
0:00:29.9]} 51... Na6 {[%clk 0:00:19.3]} 52. h4 {[%clk 0:00:30.5]} 52... Nb4
{[%clk 0:00:19.9]} 53. Bb1 {[%clk 0:00:32.1]} 53... Nc6 {[%clk 0:00:21.1]} 54.
g4 {[%clk 0:00:32.4]} 54... Kd7 {[%clk 0:00:20.6]} 55. g5 {[%clk 0:00:33]} 55...
hxg5 {[%clk 0:00:21.1]} 56. fxg5 {[%clk 0:00:32.4]} 56... Bc5 {[%clk 0:00:21.5]}
57. Bc3 {[%clk 0:00:32.6]} 57... Ke6 {[%clk 0:00:21.8]} 58. g6 {[%clk
0:00:33.1]} 58... Bb4 {[%clk 0:00:18.7]} 59. Bb2 {[%clk 0:00:32.7]} 59... Ne5+
{[%clk 0:00:18.4]} 60. Bxe5 {[%clk 0:00:32.7]} 60... Kxe5 {[%clk 0:00:20.3]} 61.
g7 {[%clk 0:00:34.2]} 1-0

[Event "*** Monthly 3|2 Blitz Masters"]
[Site "Chess.com"]
[Date "2014.11.25"]
[Round "9"]
[White "oggy1984"]
[Black "Philofive"]
[Result "0-1"]
[WhiteElo "2191"]
[BlackElo "2209"]
[TimeControl "180+2"]
[EndTime "12:59:48 PST"]
[Termination "Philofive won by resignation"]

1. e4 {[%clk 0:02:58.2]} 1... e6 {[%clk 0:02:57.9]} 2. d4 {[%clk 0:02:58.6]}
2... d5 {[%clk 0:02:59]} 3. Nc3 {[%clk 0:02:59.4]} 3... Bb4 {[%clk 0:02:59.4]}
4. e5 {[%clk 0:02:59.4]} 4... Ne7 {[%clk 0:03:00.4]} 5. Qg4 {[%clk 0:02:53.4]}
5... Nf5 {[%clk 0:02:59.7]} 6. Nf3 {[%clk 0:02:49]} 6... Nc6 {[%clk 0:02:56.7]}
7. a3 {[%clk 0:02:48.6]} 7... h5 {[%clk 0:02:48.6]} 8. Qf4 {[%clk 0:02:44.9]}
8... Be7 {[%clk 0:02:46.8]} 9. Ne2 {[%clk 0:02:30.2]} 9... h4 {[%clk 0:02:34.1]}
10. c3 {[%clk 0:02:27.7]} 10... b6 {[%clk 0:02:32.1]} 11. g4 {[%clk 0:02:25.8]}
11... hxg3 {[%clk 0:02:32]} 12. Nxg3 {[%clk 0:02:26]} 12... Nxg3 {[%clk
0:02:23.3]} 13. Qxg3 {[%clk 0:02:25.7]} 13... g6 {[%clk 0:02:20.3]} 14. h4
{[%clk 0:02:16.4]} 14... Na5 {[%clk 0:02:12]} 15. h5 {[%clk 0:02:00.9]} 15...
Rxh5 {[%clk 0:01:09.4]} 16. Rxh5 {[%clk 0:01:59.4]} 16... gxh5 {[%clk
0:01:10.3]} 17. Qg8+ {[%clk 0:01:56.4]} 17... Kd7 {[%clk 0:01:11.1]} 18. Qxf7
{[%clk 0:01:53.4]} 18... Nb3 {[%clk 0:01:08.8]} 19. Ng5 {[%clk 0:01:30.2]} 19...
Kc6 {[%clk 0:00:16.6]} 20. Nxe6 {[%clk 0:00:41.4]} 20... Qd7 {[%clk 0:00:17.6]}
21. Bh3 {[%clk 0:00:33.2]} 21... Nxa1 {[%clk 0:00:18.7]} 22. b4 {[%clk
0:00:33.5]} 22... Nb3 {[%clk 0:00:10.8]} 23. b5+ {[%clk 0:00:31]} 23... Kxb5
{[%clk 0:00:11.8]} 24. a4+ {[%clk 0:00:25.7]} 24... Ka5 {[%clk 0:00:09.2]} 25.
Bd2 {[%clk 0:00:19]} 25... Nxd2 {[%clk 0:00:09.9]} 26. Kxd2 {[%clk 0:00:16.9]}
26... Ba6 {[%clk 0:00:09.1]} 27. f4 {[%clk 0:00:13.2]} 27... Rh8 {[%clk
0:00:08.8]} 28. Qg7 {[%clk 0:00:12.1]} 28... Re8 {[%clk 0:00:08.9]} 29. Qg6
{[%clk 0:00:04.7]} 29... Qxa4 {[%clk 0:00:09.3]} 30. Qc2 {[%clk 0:00:04.6]}
30... Qxc2+ {[%clk 0:00:10.1]} 31. Kxc2 {[%clk 0:00:06.4]} 31... c5 {[%clk
0:00:10.6]} 32. f5 {[%clk 0:00:07.3]} 32... cxd4 {[%clk 0:00:11.7]} 33. cxd4
{[%clk 0:00:07.7]} 33... Bc8 {[%clk 0:00:12.9]} 34. Nc7 {[%clk 0:00:06.9]} 34...
Rf8 {[%clk 0:00:12.9]} 35. e6 {[%clk 0:00:07.4]} 35... Bb7 {[%clk 0:00:12.4]}
36. Kd3 {[%clk 0:00:06.9]} 36... Bd6 {[%clk 0:00:13.7]} 37. e7 {[%clk
0:00:07.4]} 37... Bxe7 {[%clk 0:00:14.6]} 38. Ne6 {[%clk 0:00:09.3]} 38... Rf7
{[%clk 0:00:15.5]} 39. Nf4 {[%clk 0:00:10.2]} 39... Bd6 {[%clk 0:00:14.5]} 40.
Ng6 {[%clk 0:00:10.6]} 40... Bc8 {[%clk 0:00:14.7]} 41. Ne5 {[%clk 0:00:11.7]}
41... Rxf5 {[%clk 0:00:15.4]} 42. Nc6+ {[%clk 0:00:11.5]} 42... Ka6 {[%clk
0:00:14.9]} 43. Nb8+ {[%clk 0:00:10]} 43... Bxb8 {[%clk 0:00:14.7]} 44. Ke3
{[%clk 0:00:10.6]} 44... Kb7 {[%clk 0:00:14.5]} 45. Bg2 {[%clk 0:00:10.8]} 45...
a5 {[%clk 0:00:14.9]} 46. Kd3 {[%clk 0:00:11.6]} 46... Kc6 {[%clk 0:00:16.1]}
47. Kc3 {[%clk 0:00:12.8]} 47... Rg5 {[%clk 0:00:17.3]} 48. Bh1 {[%clk
0:00:13.4]} 48... Rg3+ {[%clk 0:00:18.5]} 49. Kb2 {[%clk 0:00:14.3]} 49... Ba6
{[%clk 0:00:19.8]} 50. Ka2 {[%clk 0:00:15.2]} 50... Bc4+ {[%clk 0:00:20.9]} 51.
Kb2 {[%clk 0:00:16.2]} 51... b5 {[%clk 0:00:22.3]} 52. Kc2 {[%clk 0:00:16.1]}
52... b4 {[%clk 0:00:23.6]} 53. Kb2 {[%clk 0:00:17.3]} 53... Rh3 {[%clk
0:00:24.3]} 54. Bg2 {[%clk 0:00:16.2]} 54... Rh2 {[%clk 0:00:23.2]} 55. Ka1
{[%clk 0:00:16.5]} 55... Rxg2 {[%clk 0:00:06.1]} 56. Kb1 {[%clk 0:00:15.5]}
56... h4 {[%clk 0:00:07.3]} 57. Kc1 {[%clk 0:00:15]} 57... h3 {[%clk 0:00:08.6]}
58. Kb1 {[%clk 0:00:15.3]} 58... Re2 {[%clk 0:00:10.1]} 59. Kc1 {[%clk
0:00:15.9]} 59... h2 {[%clk 0:00:11.5]} 0-1